[Event "Late-Titled-Tuesday-Blitz-March-05-2024"]
[Site "Chess.com"]
[Date "2024.03.05"]
[Round "1"]
[White "WilsonPalencia21"]
[Black "igorknyazev"]
[Result "1-0"]
[WhiteElo "2575"]
[BlackElo "2212"]
[TimeControl "180+1"]
[EndTime "14:04:33 PST"]
[Termination "WilsonPalencia21 won by resignation"]

1. d4 {[%clk 0:03:00.9]} 1... Nf6 {[%clk 0:02:52.2]} 2. c4 {[%clk 0:03:00.6]}
2... c5 {[%clk 0:02:52.4]} 3. d5 {[%clk 0:03:00.4]} 3... b5 {[%clk 0:02:52.5]}
4. cxb5 {[%clk 0:03:01.3]} 4... a6 {[%clk 0:02:52.8]} 5. bxa6 {[%clk 0:03:02.2]}
5... Bxa6 {[%clk 0:02:53]} 6. Nc3 {[%clk 0:03:03.1]} 6... g6 {[%clk 0:02:52.7]}
7. e4 {[%clk 0:03:03.7]} 7... Bxf1 {[%clk 0:02:51.9]} 8. Kxf1 {[%clk 0:03:04.6]}
8... d6 {[%clk 0:02:52.3]} 9. g3 {[%clk 0:03:04.7]} 9... Bg7 {[%clk 0:02:52.9]}
10. Kg2 {[%clk 0:03:05.2]} 10... O-O {[%clk 0:02:53.1]} 11. Nf3 {[%clk
0:03:05.7]} 11... Qa5 {[%clk 0:02:49.3]} 12. a4 {[%clk 0:03:02.3]} 12... Ng4
{[%clk 0:02:45.5]} 13. Qc2 {[%clk 0:03:00]} 13... Na6 {[%clk 0:02:44]} 14. Bd2
{[%clk 0:02:53.2]} 14... Nb4 {[%clk 0:02:38.3]} 15. Qb1 {[%clk 0:02:53.4]} 15...
Qb6 {[%clk 0:02:33.7]} 16. Nb5 {[%clk 0:02:51.7]} 16... Rxa4 {[%clk 0:02:16.2]}
17. Rxa4 {[%clk 0:02:48]} 17... Qxb5 {[%clk 0:02:16.7]} 18. Ra3 {[%clk
0:02:43.8]} 18... Nxf2 {[%clk 0:01:44.2]} 19. Kxf2 {[%clk 0:02:38.1]} 19... Bxb2
{[%clk 0:01:44.8]} 20. Rb3 {[%clk 0:02:28.6]} 20... Bd4+ {[%clk 0:01:28.4]} 21.
Nxd4 {[%clk 0:02:27.3]} 21... cxd4 {[%clk 0:01:20.8]} 22. Rxb4 {[%clk
0:02:25.1]} 22... Qc5 {[%clk 0:01:19.4]} 23. Rc1 {[%clk 0:02:23.9]} 23... Qa7
{[%clk 0:01:19.4]} 24. Qa1 {[%clk 0:02:20.2]} 24... Qd7 {[%clk 0:01:17.7]} 25.
Qxd4 {[%clk 0:02:16.4]} 25... Qh3 {[%clk 0:01:17.9]} 26. Kg1 {[%clk 0:02:16.4]}
26... f5 {[%clk 0:01:17.5]} 27. e5 {[%clk 0:02:03.6]} 27... f4 {[%clk
0:01:02.2]} 28. Bxf4 {[%clk 0:02:00.9]} 28... dxe5 {[%clk 0:01:00.5]} 29. Qxe5
{[%clk 0:02:00.5]} 29... h5 {[%clk 0:00:49.5]} 30. Qe6+ {[%clk 0:01:59.5]} 30...
Kh7 {[%clk 0:00:48.9]} 31. Qxh3 {[%clk 0:01:57.4]} 1-0

[Event "Late-Titled-Tuesday-Blitz-March-05-2024"]
[Site "Chess.com"]
[Date "2024.03.05"]
[Round "1"]
[White "lefonghua"]
[Black "MBA_CHESS_2021"]
[Result "1-0"]
[WhiteElo "2609"]
[BlackElo "2300"]
[TimeControl "180+1"]
[EndTime "14:04:44 PST"]
[Termination "lefonghua won by checkmate"]

1. d4 {[%clk 0:03:00.9]} 1... d5 {[%clk 0:02:56.4]} 2. c4 {[%clk 0:03:01.1]}
2... c6 {[%clk 0:02:55.9]} 3. Nf3 {[%clk 0:03:01.1]} 3... Nf6 {[%clk 0:02:54.9]}
4. Nc3 {[%clk 0:03:01.5]} 4... dxc4 {[%clk 0:02:54]} 5. a4 {[%clk 0:03:01]} 5...
Bf5 {[%clk 0:02:52.7]} 6. Ne5 {[%clk 0:03:01.1]} 6... e6 {[%clk 0:02:39.5]} 7.
f3 {[%clk 0:03:00]} 7... Bb4 {[%clk 0:02:39.3]} 8. e4 {[%clk 0:02:59]} 8... Bxe4
{[%clk 0:02:38]} 9. fxe4 {[%clk 0:02:58.9]} 9... Nxe4 {[%clk 0:02:37.8]} 10. Bd2
{[%clk 0:02:59.1]} 10... Bxc3 {[%clk 0:02:28.6]} 11. bxc3 {[%clk 0:02:48.5]}
11... Qh4+ {[%clk 0:02:27.8]} 12. g3 {[%clk 0:02:48.6]} 12... Nxg3 {[%clk
0:02:27]} 13. hxg3 {[%clk 0:02:48.7]} 13... Qxh1 {[%clk 0:02:26.4]} 14. Kf2
{[%clk 0:02:42.3]} 14... Qe4 {[%clk 0:02:18.8]} 15. Bxc4 {[%clk 0:02:32.5]}
15... O-O {[%clk 0:02:17.3]} 16. Bd3 {[%clk 0:02:26.8]} 16... Qd5 {[%clk
0:02:12]} 17. Bxh7+ {[%clk 0:02:09.9]} 17... Kxh7 {[%clk 0:02:10.4]} 18. Qh5+
{[%clk 0:02:10.5]} 18... Kg8 {[%clk 0:02:10.1]} 19. Rh1 {[%clk 0:02:10.6]} 19...
Qxh1 {[%clk 0:02:07.2]} 20. Qxh1 {[%clk 0:02:11.5]} 20... Na6 {[%clk 0:02:05.4]}
21. Qe4 {[%clk 0:01:52.6]} 21... Rad8 {[%clk 0:02:00.6]} 22. Qg4 {[%clk
0:01:46.5]} 22... f5 {[%clk 0:01:57.4]} 23. Qg6 {[%clk 0:01:45.7]} 23... Rf6
{[%clk 0:01:57.1]} 24. Qh5 {[%clk 0:01:43.1]} 24... f4 {[%clk 0:01:30]} 25. Bxf4
{[%clk 0:01:34.7]} 25... c5 {[%clk 0:01:27.2]} 26. Ng4 {[%clk 0:01:17.3]} 26...
Rf5 {[%clk 0:01:18.7]} 27. Qg6 {[%clk 0:01:15.9]} 27... Rd6 {[%clk 0:01:15.2]}
28. Nh6+ {[%clk 0:01:14.7]} 28... Kf8 {[%clk 0:01:14.6]} 29. Nxf5 {[%clk
0:01:14.6]} 29... Rb6 {[%clk 0:01:15.3]} 30. Qxg7+ {[%clk 0:01:14.4]} 30... Ke8
{[%clk 0:01:15.7]} 31. Qe7# {[%clk 0:01:15.3]} 1-0

[Event "Late-Titled-Tuesday-Blitz-March-05-2024"]
[Site "Chess.com"]
[Date "2024.03.05"]
[Round "1"]
[White "masterofpuppets2"]
[Black "SchmakAttack"]
[Result "0-1"]
[WhiteElo "2478"]
[BlackElo "2813"]
[TimeControl "180+1"]
[EndTime "14:04:51 PST"]
[Termination "SchmakAttack won by resignation"]

1. d4 {[%clk 0:03:00.9]} 1... d5 {[%clk 0:02:57.9]} 2. c4 {[%clk 0:03:01.2]}
2... e6 {[%clk 0:02:58.1]} 3. Nc3 {[%clk 0:03:01.8]} 3... c6 {[%clk 0:02:58]} 4.
e4 {[%clk 0:03:01.5]} 4... dxe4 {[%clk 0:02:58.2]} 5. Nxe4 {[%clk 0:03:02.4]}
5... Bb4+ {[%clk 0:02:58.5]} 6. Nc3 {[%clk 0:03:03.1]} 6... e5 {[%clk
0:02:56.6]} 7. Nf3 {[%clk 0:03:03]} 7... exd4 {[%clk 0:02:48.7]} 8. Qxd4 {[%clk
0:03:03.9]} 8... Qxd4 {[%clk 0:02:45.6]} 9. Nxd4 {[%clk 0:03:04.8]} 9... Nf6
{[%clk 0:02:41.5]} 10. Bd2 {[%clk 0:02:58.9]} 10... O-O {[%clk 0:02:40]} 11.
O-O-O {[%clk 0:02:59]} 11... Nbd7 {[%clk 0:02:33.5]} 12. Be2 {[%clk 0:02:48.1]}
12... Ne5 {[%clk 0:02:15.2]} 13. h3 {[%clk 0:02:47.4]} 13... Re8 {[%clk
0:02:13.2]} 14. Rhe1 {[%clk 0:02:46.8]} 14... Bxc3 {[%clk 0:01:57]} 15. Bxc3
{[%clk 0:02:46.1]} 15... Ne4 {[%clk 0:01:57.3]} 16. c5 {[%clk 0:02:20.2]} 16...
Nxf2 {[%clk 0:01:42.5]} 17. Rd2 {[%clk 0:02:11.6]} 17... Ne4 {[%clk 0:01:42.1]}
18. Rdd1 {[%clk 0:02:11.1]} 18... Nxc3 {[%clk 0:01:31.9]} 19. bxc3 {[%clk
0:02:11.1]} 19... Be6 {[%clk 0:01:32.2]} 20. a3 {[%clk 0:02:02.3]} 20... Bd5
{[%clk 0:01:29.8]} 21. g4 {[%clk 0:02:00.8]} 21... g6 {[%clk 0:01:10.3]} 22. Nb5
{[%clk 0:01:45.5]} 22... Bb3 {[%clk 0:01:04.2]} 23. Nc7 {[%clk 0:01:45.2]} 23...
Bxd1 {[%clk 0:01:00.3]} 24. Nxe8 {[%clk 0:01:44.1]} 24... Bxe2 {[%clk
0:00:52.5]} 25. Nf6+ {[%clk 0:01:34.6]} 25... Kg7 {[%clk 0:00:49.5]} 0-1

[Event "Late-Titled-Tuesday-Blitz-March-05-2024"]
[Site "Chess.com"]
[Date "2024.03.05"]
[Round "1"]
[White "Msb2"]
[Black "N_Mullodzhanov"]
[Result "1-0"]
[WhiteElo "2993"]
[BlackElo "2519"]
[TimeControl "180+1"]
[EndTime "14:04:55 PST"]
[Termination "Msb2 won by checkmate"]

1. d4 {[%clk 0:03:00.9]} 1... Nf6 {[%clk 0:02:59.7]} 2. c4 {[%clk 0:03:01.6]}
2... g6 {[%clk 0:02:59]} 3. Nc3 {[%clk 0:03:02.3]} 3... Bg7 {[%clk 0:02:59]} 4.
e4 {[%clk 0:03:02.9]} 4... d6 {[%clk 0:02:59.1]} 5. Nf3 {[%clk 0:03:03.7]} 5...
O-O {[%clk 0:02:59]} 6. Be2 {[%clk 0:03:04.5]} 6... e5 {[%clk 0:02:57.1]} 7. Be3
{[%clk 0:03:04.7]} 7... Ng4 {[%clk 0:02:56.1]} 8. Bg5 {[%clk 0:03:04.7]} 8... f6
{[%clk 0:02:56.4]} 9. Bh4 {[%clk 0:03:05.4]} 9... Nc6 {[%clk 0:02:53.2]} 10. d5
{[%clk 0:03:05.9]} 10... Ne7 {[%clk 0:02:53.5]} 11. Nd2 {[%clk 0:03:06.6]} 11...
f5 {[%clk 0:02:51.7]} 12. Bxg4 {[%clk 0:03:06.6]} 12... fxg4 {[%clk 0:02:52.6]}
13. Bg5 {[%clk 0:03:07.5]} 13... a6 {[%clk 0:02:34.5]} 14. Be3 {[%clk
0:03:04.9]} 14... Qe8 {[%clk 0:02:31.5]} 15. c5 {[%clk 0:03:04.6]} 15... h6
{[%clk 0:02:23.8]} 16. cxd6 {[%clk 0:02:59.9]} 16... cxd6 {[%clk 0:02:24.7]} 17.
Nc4 {[%clk 0:03:00.5]} 17... Rf6 {[%clk 0:02:20.1]} 18. Nb6 {[%clk 0:02:59]}
18... Rb8 {[%clk 0:02:20.1]} 19. Nxc8 {[%clk 0:02:58.7]} 19... Qxc8 {[%clk
0:02:19.4]} 20. Rc1 {[%clk 0:02:59]} 20... Qd7 {[%clk 0:02:13.5]} 21. O-O {[%clk
0:02:59.3]} 21... b5 {[%clk 0:02:13.6]} 22. Ne2 {[%clk 0:02:51.8]} 22... g5
{[%clk 0:02:12.9]} 23. Qc2 {[%clk 0:02:51.7]} 23... Rc8 {[%clk 0:02:11.8]} 24.
Qd2 {[%clk 0:02:52]} 24... Rxc1 {[%clk 0:02:09.3]} 25. Rxc1 {[%clk 0:02:52.9]}
25... Ng6 {[%clk 0:02:09.3]} 26. Qc2 {[%clk 0:02:52.8]} 26... Nf4 {[%clk
0:02:05.8]} 27. Ng3 {[%clk 0:02:51.4]} 27... h5 {[%clk 0:01:57]} 28. Qc8+ {[%clk
0:02:50.7]} 28... Qxc8 {[%clk 0:01:55.7]} 29. Rxc8+ {[%clk 0:02:51.6]} 29... Bf8
{[%clk 0:01:55.5]} 30. Nf5 {[%clk 0:02:48.7]} 30... h4 {[%clk 0:01:50.4]} 31.
Rc6 {[%clk 0:02:44.9]} 31... a5 {[%clk 0:01:47.5]} 32. g3 {[%clk 0:02:41.5]}
32... Nxd5 {[%clk 0:01:41.5]} 33. Bxg5 {[%clk 0:02:37.2]} 33... Rxf5 {[%clk
0:01:32]} 34. exf5 {[%clk 0:02:36.3]} 34... hxg3 {[%clk 0:01:32.6]} 35. hxg3
{[%clk 0:02:35.8]} 35... Nb4 {[%clk 0:01:31.8]} 36. Rc8 {[%clk 0:02:34]} 36...
Kf7 {[%clk 0:01:27.3]} 37. Rc7+ {[%clk 0:02:34.5]} 37... Ke8 {[%clk 0:01:25.6]}
38. f6 {[%clk 0:02:35]} 38... Kd8 {[%clk 0:01:19.9]} 39. Rf7 {[%clk 0:02:34.5]}
39... Ke8 {[%clk 0:01:17.6]} 40. Ra7 {[%clk 0:02:34.1]} 40... Kd8 {[%clk
0:01:17.9]} 41. f7+ {[%clk 0:02:34.3]} 41... Kc8 {[%clk 0:01:17.6]} 42. Ra8+
{[%clk 0:02:34.8]} 42... Kd7 {[%clk 0:01:18.2]} 43. Rxf8 {[%clk 0:02:35.7]}
43... Ke6 {[%clk 0:01:18.7]} 44. a3 {[%clk 0:02:32.1]} 44... Nd3 {[%clk
0:01:18.6]} 45. Rb8 {[%clk 0:02:26.6]} 45... Kxf7 {[%clk 0:01:18.4]} 46. Rxb5
{[%clk 0:02:26.7]} 46... a4 {[%clk 0:01:19.3]} 47. b3 {[%clk 0:02:25.7]} 47...
axb3 {[%clk 0:01:17.6]} 48. Rxb3 {[%clk 0:02:26.6]} 48... Ne1 {[%clk 0:01:17.2]}
49. a4 {[%clk 0:02:22.7]} 49... Ke6 {[%clk 0:01:17.6]} 50. a5 {[%clk 0:02:23]}
50... d5 {[%clk 0:01:15.1]} 51. a6 {[%clk 0:02:23]} 51... d4 {[%clk 0:01:15.6]}
52. a7 {[%clk 0:02:23.5]} 52... Nf3+ {[%clk 0:01:16.2]} 53. Rxf3 {[%clk
0:02:23.2]} 53... gxf3 {[%clk 0:01:17.1]} 54. a8=Q {[%clk 0:02:23.9]} 54... d3
{[%clk 0:01:17.8]} 55. Qxf3 {[%clk 0:02:24.2]} 55... d2 {[%clk 0:01:17.8]} 56.
Bxd2 {[%clk 0:02:24.9]} 56... Kd6 {[%clk 0:01:17.1]} 57. Qe4 {[%clk 0:02:25]}
57... Kc5 {[%clk 0:01:17.5]} 58. f3 {[%clk 0:02:25.5]} 58... Kb5 {[%clk
0:01:17.7]} 59. Kg2 {[%clk 0:02:26.2]} 59... Kc5 {[%clk 0:01:18.6]} 60. Kh2
{[%clk 0:02:26.9]} 60... Kb5 {[%clk 0:01:19.5]} 61. Kh1 {[%clk 0:02:27.6]} 61...
Kc5 {[%clk 0:01:20.4]} 62. Be1 {[%clk 0:02:28.3]} 62... Kb5 {[%clk 0:01:21.3]}
63. Bf2 {[%clk 0:02:29.1]} 63... Ka5 {[%clk 0:01:20.7]} 64. Kg2 {[%clk 0:02:30]}
64... Kb5 {[%clk 0:01:21.6]} 65. Kf1 {[%clk 0:02:30.9]} 65... Ka5 {[%clk
0:01:22.5]} 66. Ke2 {[%clk 0:02:31.8]} 66... Kb5 {[%clk 0:01:23.4]} 67. Kd1
{[%clk 0:02:32.7]} 67... Ka5 {[%clk 0:01:24.3]} 68. Kc2 {[%clk 0:02:33.6]} 68...
Kb5 {[%clk 0:01:25.2]} 69. Kb1 {[%clk 0:02:34.5]} 69... Ka5 {[%clk 0:01:26.1]}
70. Ka2 {[%clk 0:02:35.4]} 70... Kb5 {[%clk 0:01:27]} 71. Kb3 {[%clk 0:02:36.3]}
71... Ka5 {[%clk 0:01:27.9]} 72. g4 {[%clk 0:02:37.2]} 72... Kb5 {[%clk
0:01:28.8]} 73. g5 {[%clk 0:02:38.1]} 73... Ka5 {[%clk 0:01:29.7]} 74. g6 {[%clk
0:02:39]} 74... Kb5 {[%clk 0:01:30.6]} 75. g7 {[%clk 0:02:39.9]} 75... Ka5
{[%clk 0:01:31.5]} 76. Qxe5+ {[%clk 0:02:36.5]} 76... Ka6 {[%clk 0:01:30.7]} 77.
Qe6+ {[%clk 0:02:36]} 77... Kb7 {[%clk 0:01:28.5]} 78. Qd7+ {[%clk 0:02:34.9]}
78... Ka6 {[%clk 0:01:27.4]} 79. Qc6+ {[%clk 0:02:34.9]} 79... Ka5 {[%clk
0:01:27.3]} 80. Be1# {[%clk 0:02:35.7]} 1-0

[Event "Late-Titled-Tuesday-Blitz-March-05-2024"]
[Site "Chess.com"]
[Date "2024.03.05"]
[Round "1"]
[White "TheKingDoctor"]
[Black "xhembulla"]
[Result "0-1"]
[WhiteElo "2361"]
[BlackElo "2649"]
[TimeControl "180+1"]
[EndTime "14:05:05 PST"]
[Termination "xhembulla won by resignation"]

1. e4 {[%clk 0:03:00.9]} 1... e5 {[%clk 0:02:59.9]} 2. Nf3 {[%clk 0:03:00.2]}
2... Nc6 {[%clk 0:03:00.2]} 3. d4 {[%clk 0:03:00.2]} 3... exd4 {[%clk
0:03:01.1]} 4. Nxd4 {[%clk 0:03:01.1]} 4... Nf6 {[%clk 0:03:00.5]} 5. Nxc6
{[%clk 0:03:01]} 5... bxc6 {[%clk 0:03:00.8]} 6. Bd3 {[%clk 0:03:01.6]} 6... d5
{[%clk 0:03:00.7]} 7. exd5 {[%clk 0:03:01]} 7... cxd5 {[%clk 0:03:01.6]} 8. O-O
{[%clk 0:03:01.7]} 8... Be7 {[%clk 0:02:58.1]} 9. Nc3 {[%clk 0:03:02]} 9... O-O
{[%clk 0:02:58.3]} 10. Qf3 {[%clk 0:03:01.3]} 10... Rb8 {[%clk 0:02:58.1]} 11.
b3 {[%clk 0:02:56.8]} 11... Rb6 {[%clk 0:02:58]} 12. Bb2 {[%clk 0:02:56.9]}
12... Bb7 {[%clk 0:02:57.6]} 13. Na4 {[%clk 0:02:52.4]} 13... Re6 {[%clk
0:02:52.4]} 14. Rfe1 {[%clk 0:02:45.9]} 14... Ne4 {[%clk 0:02:52.1]} 15. Rad1
{[%clk 0:02:45]} 15... Qe8 {[%clk 0:02:39]} 16. Qg4 {[%clk 0:02:26.7]} 16... Rg6
{[%clk 0:02:33.7]} 17. Qh3 {[%clk 0:02:16.2]} 17... Bc8 {[%clk 0:02:22.4]} 18.
Qe3 {[%clk 0:02:12.1]} 18... Bg5 {[%clk 0:02:10.1]} 19. f4 {[%clk 0:02:09.7]}
19... Bh4 {[%clk 0:02:06.7]} 20. Rf1 {[%clk 0:01:52.5]} 20... Bg4 {[%clk
0:02:02.9]} 21. Be2 {[%clk 0:01:46.6]} 21... Bxe2 {[%clk 0:01:57.8]} 22. Qxe2
{[%clk 0:01:47.5]} 22... Qc6 {[%clk 0:01:54.7]} 23. Qh5 {[%clk 0:01:30.7]} 23...
Rh6 {[%clk 0:01:39.7]} 24. Qxd5 {[%clk 0:01:25.1]} 24... Qxc2 {[%clk 0:01:39.5]}
25. Bd4 {[%clk 0:01:18.6]} 25... Rg6 {[%clk 0:01:31.1]} 26. g4 {[%clk
0:00:37.5]} 26... Rxg4+ {[%clk 0:01:29.6]} 0-1

[Event "Late-Titled-Tuesday-Blitz-March-05-2024"]
[Site "Chess.com"]
[Date "2024.03.05"]
[Round "1"]
[White "NCchamp"]
[Black "CrushingKings"]
[Result "1-0"]
[WhiteElo "2327"]
[BlackElo "2598"]
[TimeControl "180+1"]
[EndTime "14:05:07 PST"]
[Termination "NCchamp won by resignation"]

1. d4 {[%clk 0:03:00.9]} 1... g6 {[%clk 0:02:59.7]} 2. e4 {[%clk 0:02:59.7]}
2... Bg7 {[%clk 0:03:00.6]} 3. f4 {[%clk 0:02:58.7]} 3... c6 {[%clk 0:03:01.5]}
4. Nf3 {[%clk 0:02:58.4]} 4... d5 {[%clk 0:03:02.4]} 5. e5 {[%clk 0:02:55.1]}
5... Nh6 {[%clk 0:03:00.9]} 6. Bd3 {[%clk 0:02:54.3]} 6... Bg4 {[%clk
0:03:01.1]} 7. O-O {[%clk 0:02:50.1]} 7... O-O {[%clk 0:02:59.1]} 8. Be3 {[%clk
0:02:48.3]} 8... f6 {[%clk 0:02:59.2]} 9. h3 {[%clk 0:02:45.1]} 9... Bxf3 {[%clk
0:02:59.1]} 10. Rxf3 {[%clk 0:02:45.6]} 10... fxe5 {[%clk 0:02:58]} 11. fxe5
{[%clk 0:02:46.5]} 11... e6 {[%clk 0:02:56.7]} 12. c3 {[%clk 0:02:33]} 12... Nd7
{[%clk 0:02:54]} 13. Nd2 {[%clk 0:02:29]} 13... Qh4 {[%clk 0:02:52.6]} 14. Qe2
{[%clk 0:02:16.6]} 14... Rxf3 {[%clk 0:02:34.7]} 15. Nxf3 {[%clk 0:02:17.5]}
15... Qh5 {[%clk 0:02:35.1]} 16. Ng5 {[%clk 0:01:51.5]} 16... Qxe2 {[%clk
0:02:33.4]} 17. Bxe2 {[%clk 0:01:52.4]} 17... Nf5 {[%clk 0:02:32.6]} 18. Bf2
{[%clk 0:01:49.2]} 18... Nf8 {[%clk 0:02:25.6]} 19. g4 {[%clk 0:01:41.6]} 19...
Nh6 {[%clk 0:02:02.3]} 20. b4 {[%clk 0:01:20.6]} 20... Nf7 {[%clk 0:02:00.8]}
21. Nxf7 {[%clk 0:01:14.1]} 21... Kxf7 {[%clk 0:02:01.7]} 22. a4 {[%clk
0:01:12.1]} 22... Bh6 {[%clk 0:01:58.8]} 23. h4 {[%clk 0:00:59.9]} 23... Bd2
{[%clk 0:01:57.8]} 24. Be1 {[%clk 0:00:56.7]} 24... Be3+ {[%clk 0:01:54.3]} 25.
Bf2 {[%clk 0:00:56.3]} 25... Bd2 {[%clk 0:01:55]} 26. Be1 {[%clk 0:00:56.4]}
26... Bf4 {[%clk 0:01:43.4]} 27. Kg2 {[%clk 0:00:52.6]} 27... Kg7 {[%clk
0:01:38.9]} 28. Bg3 {[%clk 0:00:51.3]} 28... Bd2 {[%clk 0:01:38.9]} 29. Be1
{[%clk 0:00:50]} 29... Be3 {[%clk 0:01:38.8]} 30. Kf3 {[%clk 0:00:45]} 1-0

[Event "Late-Titled-Tuesday-Blitz-March-05-2024"]
[Site "Chess.com"]
[Date "2024.03.05"]
[Round "1"]
[White "morte-negra"]
[Black "GlavkonVVS"]
[Result "0-1"]
[WhiteElo "2049"]
[BlackElo "2544"]
[TimeControl "180+1"]
[EndTime "14:05:08 PST"]
[Termination "GlavkonVVS won by resignation"]

1. e4 {[%clk 0:02:51.5]} 1... Nf6 {[%clk 0:02:57]} 2. e5 {[%clk 0:02:50.7]} 2...
Nd5 {[%clk 0:02:56.8]} 3. d4 {[%clk 0:02:51.4]} 3... d6 {[%clk 0:02:56.6]} 4. c4
{[%clk 0:02:52.1]} 4... Nb6 {[%clk 0:02:56.6]} 5. f4 {[%clk 0:02:52.8]} 5...
dxe5 {[%clk 0:02:56.9]} 6. fxe5 {[%clk 0:02:53.6]} 6... c5 {[%clk 0:02:57.5]} 7.
d5 {[%clk 0:02:52.8]} 7... g6 {[%clk 0:02:57.4]} 8. Nc3 {[%clk 0:02:51.6]} 8...
Bg7 {[%clk 0:02:57.6]} 9. Bf4 {[%clk 0:02:51.2]} 9... O-O {[%clk 0:02:57.4]} 10.
Be2 {[%clk 0:02:45.8]} 10... e6 {[%clk 0:02:56.9]} 11. Nf3 {[%clk 0:02:39.9]}
11... exd5 {[%clk 0:02:54.9]} 12. cxd5 {[%clk 0:02:39]} 12... Bg4 {[%clk
0:02:54.9]} 13. O-O {[%clk 0:02:36.2]} 13... N8d7 {[%clk 0:02:49.7]} 14. Qe1
{[%clk 0:01:56.9]} 14... Bxf3 {[%clk 0:02:44.1]} 15. Bxf3 {[%clk 0:01:56.3]}
15... Nxe5 {[%clk 0:02:40.3]} 16. Bxe5 {[%clk 0:01:54.9]} 16... Re8 {[%clk
0:02:40.4]} 17. Bxg7 {[%clk 0:00:53.7]} 17... Rxe1 {[%clk 0:02:38]} 18. Raxe1
{[%clk 0:00:53.1]} 18... Kxg7 {[%clk 0:02:38.4]} 19. Bg4 {[%clk 0:00:46.6]}
19... f5 {[%clk 0:02:36]} 20. Bf3 {[%clk 0:00:45.7]} 20... Qf6 {[%clk
0:02:26.6]} 21. Re6 {[%clk 0:00:45.1]} 21... Qd4+ {[%clk 0:02:25.8]} 22. Kh1
{[%clk 0:00:42.8]} 22... Rf8 {[%clk 0:02:25.3]} 23. Rfe1 {[%clk 0:00:42.8]}
23... Rf7 {[%clk 0:02:19.6]} 24. g3 {[%clk 0:00:41.5]} 24... Nc4 {[%clk
0:02:18.7]} 25. Bg2 {[%clk 0:00:40.1]} 25... a6 {[%clk 0:02:17.6]} 26. Na4
{[%clk 0:00:36.2]} 26... Nxb2 {[%clk 0:02:02.3]} 27. Nb6 {[%clk 0:00:35.1]}
27... Nd3 {[%clk 0:02:00.6]} 28. Rf1 {[%clk 0:00:25.2]} 28... c4 {[%clk
0:01:55.2]} 29. d6 {[%clk 0:00:24.3]} 29... Qxb6 {[%clk 0:01:54.7]} 0-1

[Event "Late-Titled-Tuesday-Blitz-March-05-2024"]
[Site "Chess.com"]
[Date "2024.03.05"]
[Round "1"]
[White "Sinquefield"]
[Black "kleinebeer98"]
[Result "0-1"]
[WhiteElo "2499"]
[BlackElo "2887"]
[TimeControl "180+1"]
[EndTime "14:05:22 PST"]
[Termination "kleinebeer98 won by resignation"]

1. d4 {[%clk 0:03:00.9]} 1... Nf6 {[%clk 0:02:52.5]} 2. Nf3 {[%clk 0:03:00.7]}
2... Nc6 {[%clk 0:02:52.3]} 3. Bg5 {[%clk 0:02:58.6]} 3... e6 {[%clk 0:02:51.2]}
4. Nbd2 {[%clk 0:02:58.8]} 4... h6 {[%clk 0:02:50.8]} 5. Bh4 {[%clk 0:02:58.4]}
5... g5 {[%clk 0:02:50.6]} 6. Bg3 {[%clk 0:02:58.2]} 6... Bg7 {[%clk 0:02:51.5]}
7. e3 {[%clk 0:02:58.4]} 7... d6 {[%clk 0:02:49.6]} 8. c3 {[%clk 0:02:57.7]}
8... Qe7 {[%clk 0:02:49.7]} 9. Bd3 {[%clk 0:02:58.2]} 9... e5 {[%clk 0:02:50.1]}
10. dxe5 {[%clk 0:02:58.7]} 10... dxe5 {[%clk 0:02:51]} 11. Ne4 {[%clk
0:02:59.2]} 11... Nxe4 {[%clk 0:02:49.2]} 12. Bxe4 {[%clk 0:03:00.1]} 12... f5
{[%clk 0:02:49.8]} 13. Bxc6+ {[%clk 0:02:50.3]} 13... bxc6 {[%clk 0:02:50.7]}
14. Qa4 {[%clk 0:02:48]} 14... O-O {[%clk 0:02:45.5]} 15. h4 {[%clk 0:02:34.4]}
15... f4 {[%clk 0:02:43.6]} 16. Bh2 {[%clk 0:02:32.6]} 16... g4 {[%clk
0:02:41.7]} 17. Nd2 {[%clk 0:02:32.5]} 17... g3 {[%clk 0:02:32.7]} 18. fxg3
{[%clk 0:02:32.9]} 18... fxe3 {[%clk 0:02:33.4]} 19. Nf3 {[%clk 0:02:30.4]}
19... e4 {[%clk 0:02:30.2]} 20. Nd4 {[%clk 0:02:25.9]} 20... c5 {[%clk
0:02:29.6]} 21. Qc4+ {[%clk 0:02:21.9]} 21... Kh7 {[%clk 0:02:28.7]} 22. Ne2
{[%clk 0:02:07.6]} 22... Bg4 {[%clk 0:02:27.7]} 23. Rf1 {[%clk 0:01:41.7]} 23...
Rxf1+ {[%clk 0:02:24.4]} 24. Kxf1 {[%clk 0:01:42.6]} 24... Rf8+ {[%clk 0:02:24]}
25. Nf4 {[%clk 0:01:41.2]} 25... e2+ {[%clk 0:02:02]} 26. Kg1 {[%clk 0:01:37.4]}
26... Rb8 {[%clk 0:02:01.8]} 27. b3 {[%clk 0:01:31.3]} 27... Rb4 {[%clk
0:01:58.4]} 28. Qa6 {[%clk 0:01:25]} 28... Qf6 {[%clk 0:01:51]} 29. Qxf6 {[%clk
0:01:10.7]} 29... Bxf6 {[%clk 0:01:51.9]} 30. cxb4 {[%clk 0:01:06.4]} 30... Bd4+
{[%clk 0:01:52.2]} 31. Kh1 {[%clk 0:01:04.4]} 31... Bxa1 {[%clk 0:01:53.1]} 32.
Nxe2 {[%clk 0:01:02.7]} 32... Bxe2 {[%clk 0:01:54]} 33. bxc5 {[%clk 0:01:03.4]}
33... Bd4 {[%clk 0:01:51]} 34. Bg1 {[%clk 0:01:03.8]} 34... Bxg1 {[%clk
0:01:51.7]} 35. Kxg1 {[%clk 0:01:04.7]} 35... e3 {[%clk 0:01:52.3]} 36. b4
{[%clk 0:00:57.7]} 36... h5 {[%clk 0:01:51.2]} 37. a4 {[%clk 0:00:55]} 37... Kg6
{[%clk 0:01:50]} 38. b5 {[%clk 0:00:55.5]} 38... Kf5 {[%clk 0:01:49.5]} 39. c6
{[%clk 0:00:55.6]} 39... Kg4 {[%clk 0:01:46]} 40. Kh2 {[%clk 0:00:56.1]} 40...
Bxb5 {[%clk 0:01:44.9]} 41. axb5 {[%clk 0:00:56.3]} 41... e2 {[%clk 0:01:45.5]}
42. b6 {[%clk 0:00:56.6]} 42... axb6 {[%clk 0:01:45.7]} 43. Kg1 {[%clk
0:00:56.1]} 43... e1=B {[%clk 0:01:43.2]} 44. Kh2 {[%clk 0:00:57]} 44... Bxg3+
{[%clk 0:01:43.5]} 45. Kh1 {[%clk 0:00:57.5]} 45... b5 {[%clk 0:01:43.1]} 46.
Kg1 {[%clk 0:00:57.8]} 46... Kf4 {[%clk 0:01:43.5]} 47. Kf1 {[%clk 0:00:58.7]}
47... Ke3 {[%clk 0:01:44.2]} 48. Kg1 {[%clk 0:00:58.9]} 48... b4 {[%clk
0:01:45.1]} 49. Kh1 {[%clk 0:00:59.8]} 49... b3 {[%clk 0:01:46]} 50. Kg1 {[%clk
0:01:00.6]} 50... b2 {[%clk 0:01:46.6]} 51. Kh1 {[%clk 0:01:01.5]} 51... b1=B
{[%clk 0:01:46.1]} 52. Kg1 {[%clk 0:01:02.4]} 52... Be4 {[%clk 0:01:46.3]} 53.
Kh1 {[%clk 0:01:03.3]} 53... Bxc6 {[%clk 0:01:47]} 54. Kg1 {[%clk 0:01:04.2]}
54... Bxh4 {[%clk 0:01:47.1]} 55. Kh1 {[%clk 0:01:05.1]} 55... Bg3 {[%clk
0:01:47.7]} 56. Kg1 {[%clk 0:01:06]} 56... Be4 {[%clk 0:01:48.2]} 57. Kh1 {[%clk
0:01:06.9]} 57... c5 {[%clk 0:01:48.7]} 58. Kg1 {[%clk 0:01:07.8]} 58... c4
{[%clk 0:01:49.6]} 0-1